Workbook

Sheet Budget
B1: Start Date | C1: End Date
A2: Month | B2: 2015-04-01 | C2: 2015-04-22
A4: Category | B4: Budget | C4: Actual | D4: Difference
A5: Car | B5: 25 | C5: 0 | D5: =B5-C5 -> 25
A6: Clothes | B6: 25 | C6: 0 | D6: =B6-C6 -> 25
A7: Donations | B7: 25 | C7: 20 | D7: 5
A8: Eating Out | B8: 25 | C8: 0 | D8: 25
A9: Education | B9: 25 | C9: 68.09 | D9: -43.09
A10: Fast Food | B10: 25 | C10: 17.27 | D10: 7.73
A11: Gas | B11: 100 | C11: 41.01 | D11: 58.99
A12: Gifts | B12: 25 | C12: 0 | D12: 25
A13: Groceries | B13: 300 | C13: 133.9 | D13: 166.1
A14: Health | B14: 500 | C14: 0 | D14: 500
A15: Insurance | B15: 25 | C15: 191.42 | D15: -166.42
A16: Rent | B16: 800 | C16: 85 | D16: 715
A17: Tithing | B17: 0 | C17: 0 | D17: 0
A18: Travel | B18: 0 | C18: 0 | D18: 0
A19: Tupperware | B19: 0 | C19: 0 | D19: 0
A20: Uncategorized | B20: 0 | C20: 2019.03 | D20: -2019.03
A21: Utilities | B21: 25 | C21: 24.15 | D21: 0.85

Sheet importData (hidden)
A1: Account | B1: Date | C1: Amount | D1: Description | E1: Category | F1: Memo | G1: Notes
A2: VISA Credit | B2: 2015-04-22 | C2: 22.75 | D2: MACEYS PROVO | E2: Groceries
A3: VISA Credit | B3: 2015-04-22 | C3: -21.63 | D3: SALEM HILLS PHARMACY SALEM UT | E3: Utilities
A4: Checking | B4: 2015-04-21 | C4: -7.48 | D4: BYU CREAMERY ON NINTH PROVO UT | E4: Groceries
A5: Checking | B5: 2015-04-20 | C5: -123.66 | D5: WINCO FOODS # 76 895 N Orem UT | E5: Groceries
A6: VISA Credit | B6: 2015-04-20 | C6: -8.99 | D6: DENTALPLANS.COM 800-494-9294 FL | E6: Health
A7: VISA Credit | B7: 2015-04-19 | C7: -5.04 | D7: STEVENSONS GENEALOGY A PROVO UT | E7: Utilities
A8: VISA Credit | B8: 2015-04-19 | C8: -12.69 | D8: MCDONALD'S F37150 WEST VALLEY C UT | E8: Fast Food
A9: VISA Credit | B9: 2015-04-19 | C9: -66.14 | D9: JOANN FABRIC #1756 OREM UT | E9: Utilities
A10: VISA Credit | B10: 2015-04-19 | C10: -1.22 | D10: ASIAN MARKET PROVO UT | E10: Utilities
A11: VISA Credit | B11: 2015-04-19 | C11: -19.48 | D11: ASIAN MARKET PROVO UT | E11: Utilities
A12: Checking | B12: 2015-04-17 | C12: 703.98 | D12: Check Deposit | E12: Uncategorized
A13: Checking | B13: 2015-04-17 | C13: -150 | D13: ACH Withdrawal BYU | E13: Utilities
A14: VISA Credit | B14: 2015-04-16 | C14: -37.9 | D14: CHEVRON 00072863 OREM UT | E14: Gas
A15: VISA Credit | B15: 2015-04-15 | C15: -12.14 | D15: COSTA VIDA PROVO UT | E15: Utilities
A16: VISA Credit | B16: 2015-04-14 | C16: -8.53 | D16: SQ *NYCE-YCE LLC Salem UT | E16: Utilities
A17: Checking | B17: 2015-04-14 | C17: -15 | D17: Check Withdrawal: #000455 | E17: Uncategorized
A18: VISA Credit | B18: 2015-04-13 | C18: -2.99 | D18: SQ *NYCE-YCE LLC Salem UT | E18: Utilities
A19: Checking | B19: 2015-04-13 | C19: 900 | D19: Online Deposit From Share 01 | E19: Internal Transfer
A20: Savings | B20: 2015-04-13 | C20: -900 | D20: Online Withdrawal To Share 50 | E20: Internal Transfer
A21: Checking | B21: 2015-04-13 | C21: -894.12 | D21: ACH Withdrawal JPMORGAN CHASE | E21: Rental Mortgage
A22: Checking | B22: 2015-04-13 | C22: 895 | D22: ACH Deposit REAL PROPERTY MA | E22: Rental Income
A23: VISA Credit | B23: 2015-04-12 | C23: -33.66 | D23: SPROUTS FARMERS MAR OREM UT | E23: Groceries
A24: VISA Credit | B24: 2015-04-12 | C24: -10.34 | D24: SWEET TOMATOES 54 Q14 SANDY UT | E24: Groceries
A25: VISA Credit | B25: 2015-04-12 | C25: -12.8 | D25: DRESSING YOUR TRUTH LEHI UT | E25: Clothes

Sheet All Transactions
A1: Account | B1: Date | C1: Amount | D1: Description | E1: Category | F1: Memo | G1: Notes
A2: Checking | B2: 2015-04-11 | C2: -8.13 | D2: BYU CREAMERY ON NINTH PROVO UT | E2: Groceries
A3: Checking | B3: 2015-04-10 | C3: -7.49 | D3: EL AZTECA TACO SHOP PROVO UT | E3: Fast Food
A4: Checking | B4: 2015-04-09 | C4: -31.5 | D4: BYU STORE PROVO UT | E4: Education
A5: Checking | B5: 2015-04-09 | C5: -1840 | D5: Check Withdrawal: #000456 | E5: Uncategorized
A6: Checking | B6: 2015-04-09 | C6: -16.01 | D6: BYU STORE - INTERNET 801-422-2400 UT | E6: Education
A7: VISA Credit | B7: 2015-04-08 | C7: -11.49 | D7: RANCHO MARKET #4 PROVO UT | E7: Groceries
A8: Checking | B8: 2015-04-08 | C8: -191.42 | D8: ACH Withdrawal ALLSTATE INS CO | E8: Insurance
A9: Checking | B9: 2015-04-08 | C9: -20 | D9: ACH Withdrawal STEVE SOULIER | E9: Utilities
A10: Checking | B10: 2015-04-07 | C10: -4.15 | D10: SQ *RESTRANT THE CHOCOL Orem UT | E10: Utilities
A11: Checking | B11: 2015-04-07 | C11: -20 | D11: PAYPAL *INDIEGOGO 402-935-7733 CA | E11: Donations
A12: Checking | B12: 2015-04-07 | C12: -97.1 | D12: ACH Withdrawal PAYPAL | E12: Uncategorized
A13: Checking | B13: 2015-04-07 | C13: -32.7 | D13: ACH Withdrawal PAYPAL | E13: Uncategorized
A14: Checking | B14: 2015-04-06 | C14: 1200 | D14: Online Deposit From Share 01 | E14: Internal Transfer
A15: Savings | B15: 2015-04-06 | C15: -1200 | D15: Online Withdrawal To Share 50 | E15: Internal Transfer
A16: VISA Credit | B16: 2015-04-04 | C16: -114.28 | D16: SPROUTS FARMERS MAR OREM UT | E16: Groceries
A17: VISA Credit | B17: 2015-04-04 | C17: -9.78 | D17: JAMBA JUICE #201 PROVO UT | E17: Fast Food
A18: VISA Credit | B18: 2015-04-03 | C18: -41.01 | D18: CHEVRON 00073049 PROVO UT | E18: Gas
A19: Checking | B19: 2015-04-03 | C19: -18.73 | D19: Check Withdrawal: #000454 | E19: Uncategorized
A20: Checking | B20: 2015-04-03 | C20: -85 | D20: ACH Withdrawal SPRING CREEK CRO | E20: Rental Costs
A21: Checking | B21: 2015-04-02 | C21: -9 | D21: Check Withdrawal: #000453 | E21: Uncategorized
A22: Checking | B22: 2015-04-02 | C22: -21.5 | D22: AMAZON MKTPLACE PMTS AMZN.COM/BILL WA | E22: Uncategorized
A23: Checking | B23: 2015-04-02 | C23: -12.65 | D23: BYU STORE PROVO UT | E23: Education
A24: Checking | B24: 2015-04-02 | C24: -7.93 | D24: BYU STORE PROVO UT | E24: Education
A25: Checking | B25: 2015-04-01 | C25: -11.29 | D25: IFA PROVO 55 WEST 500 SOUTH PROVO UT | E25: Utilities
A26: Checking | B26: 2015-04-01 | C26: -35 | D26: ART CITY TROLLEY SPRINGVILLE UT | E26: Utilities
A27: Checking | B27: 2015-03-31 | C27: 0.46 | D27: Dividend Deposit 0.100% | E27: Income
A28: Megan Savings | B28: 2015-03-31 | C28: 0.02 | D28: Dividend Deposit 0.100% | E28: Income
A29: Savings | B29: 2015-03-31 | C29: 0.21 | D29: Dividend Deposit 0.100% | E29: Income
A30: Checking | B30: 2015-03-31 | C30: 1500 | D30: Online Deposit From Share 01 | E30: Internal Transfer
A31: Savings | B31: 2015-03-31 | C31: -1500 | D31: Online Withdrawal To Share 50 | E31: Internal Transfer
A32: VISA Credit | B32: 2015-03-30 | C32: -670.43 | D32: Loan Advance To Share 50 | E32: Internal Transfer
A33: Checking | B33: 2015-03-30 | C33: -825 | D33: ACH Withdrawal TIE ALPHA L.C. | E33: Rent
A34: Checking | B34: 2015-03-30 | C34: 670.43 | D34: Deposit From Loan 75 | E34: Internal Transfer
A35: VISA Credit | B35: 2015-03-29 | C35: -8 | D35: WIGGY WASH SPANISH FORK UT | E35: Car
A36: Checking | B36: 2015-03-29 | C36: 50 | D36: HYATT HOTELS HOUSTON HOUSTON TX | E36: Travel
A37: VISA Credit | B37: 2015-03-28 | C37: -4.88 | D37: TACO BELL #27887 PAYSON UT | E37: Fast Food
A38: Checking | B38: 2015-03-27 | C38: -50 | D38: HYATT HOTELS HOUSTON HOUSTON TX | E38: Travel
A39: VISA Credit | B39: 2015-03-26 | C39: -1.03 | D39: HARMONS - DIXIE ST. GEORGE UT | E39: Groceries
A40: VISA Credit | B40: 2015-03-26 | C40: -39.05 | D40: HARMONS - DIXIE ST. GEORGE UT | E40: Groceries
A41: VISA Credit | B41: 2015-03-25 | C41: -52.77 | D41: KID TO KID ST GEORGE ST GEORGE UT | E41: Clothes
A42: VISA Credit | B42: 2015-03-25 | C42: -20 | D42: ST GEORGE COMMUNITY HE ST GEORGE UT | E42: Health
A43: Checking | B43: 2015-03-25 | C43: -10.93 | D43: PAPPAS BAR-B-Q #664Q80 HOUSTON TX | E43: Eating Out
A44: VISA Credit | B44: 2015-03-24 | C44: -8.44 | D44: REAL FOODS MARKET LLC SALT LAKE CIT UT | E44: Groceries
A45: Checking | B45: 2015-03-24 | C45: -3.2 | D45: BYU CREAMERY ON NINTH PROVO UT | E45: Groceries
A46: Checking | B46: 2015-03-23 | C46: -0.08 | D46: Fee Withdrawal Card Fee | E46: Travel
A47: Checking | B47: 2015-03-23 | C47: -8.09 | D47: SUPERCHE 652 SAMARA ST MEXICO DF MX | E47: Travel
A48: Checking | B48: 2015-03-23 | C48: -6.5 | D48: Fee Withdrawal Card Fee | E48: Travel
A49: Checking | B49: 2015-03-23 | C49: -650.04 | D49: HILTON MEX CITY STA FE MEXICO DF MX | E49: Travel
A50: VISA Credit | B50: 2015-03-23 | C50: 3381.78 | D50: Online Loan Payment From Share 01 | E50: Internal Transfer
A51: Savings | B51: 2015-03-23 | C51: -3381.78 | D51: Online Withdrawal To Loan 75 | E51: Internal Transfer
A52: Checking | B52: 2015-03-23 | C52: -2.14 | D52: Fee Withdrawal Card Fee | E52: Travel
A53: Checking | B53: 2015-03-23 | C53: -213.71 | D53: BUDGET AEROPUERTO DE M MEXICO DF MX | E53: Travel
A54: VISA Credit | B54: 2015-03-22 | C54: -9.09 | D54: YOGURTLAND ST.GEORGE UT ST GEORGE UT | E54: Fast Food
A55: Checking | B55: 2015-03-21 | C55: -0.09 | D55: Fee Withdrawal Card Fee | E55: Travel
A56: Checking | B56: 2015-03-21 | C56: -9.28 | D56: REST EL GRILL OPERADOR MEXICO DF MX | E56: Travel
A57: VISA Credit | B57: 2015-03-21 | C57: -37.79 | D57: VITAMIN COTTAGESG WASHINGTON UT | E57: Groceries
A58: Checking | B58: 2015-03-21 | C58: -1.5 | D58: Fee Withdrawal NON CO-OP ATM | E58: Travel
A59: Checking | B59: 2015-03-21 | C59: -0.36 | D59: Fee Withdrawal ATM Fee | E59: Travel
A60: Checking | B60: 2015-03-21 | C60: -35.62 | D60: ATM Withdrawal #508001064327 | E60: Travel
A61: Checking | B61: 2015-03-21 | C61: -0.04 | D61: Fee Withdrawal Card Fee | E61: Travel
A62: Checking | B62: 2015-03-21 | C62: -4.41 | D62: LA CREPE PARISIENE MEXICO DF MX | E62: Travel
A63: VISA Credit | B63: 2015-03-20 | C63: -27.66 | D63: REAL FOODS MARKET LLC SALT LAKE CIT UT | E63: Groceries
A64: VISA Credit | B64: 2015-03-20 | C64: -35 | D64: ST GEORGE COMMUNITY HE ST GEORGE UT | E64: Health
A65: Checking | B65: 2015-03-20 | C65: -0.09 | D65: Fee Withdrawal Card Fee | E65: Travel
A66: Checking | B66: 2015-03-20 | C66: -8.61 | D66: JUG IMAGINARIUM STA FE MEXICO DF MX | E66: Travel
A67: Checking | B67: 2015-03-20 | C67: -26.98 | D67: FTD*FTD.COM 501-8336470 IL | E67: Gifts
A68: VISA Credit | B68: 2015-03-20 | C68: -8.99 | D68: DENTALPLANS.COM 800-494-9294 FL | E68: Health
A69: Checking | B69: 2015-03-20 | C69: -0.06 | D69: Fee Withdrawal Card Fee | E69: Travel
A70: Checking | B70: 2015-03-20 | C70: -5.79 | D70: COMI POLLO VA QUE VUEL MEXICO DF MX | E70: Travel
A71: Checking | B71: 2015-03-20 | C71: -15 | D71: GROUPON INC 877-788-7858 IL | E71: Gifts
A72: Checking | B72: 2015-03-19 | C72: -0.02 | D72: Fee Withdrawal Card Fee | E72: Travel
A73: Checking | B73: 2015-03-19 | C73: -2.24 | D73: BURGER KING SAMARA MEXICO DF MX | E73: Fast Food
A74: Checking | B74: 2015-03-19 | C74: -2.5 | D74: UTA-FRONTRUNNER TVM SALT LAKE CIT UT | E74: Travel
A75: Checking | B75: 2015-03-19 | C75: -5.5 | D75: UTA-FRONTRUNNER TVM SALT LAKE CIT UT | E75: Travel
A76: VISA Credit | B76: 2015-03-18 | C76: -32.98 | D76: Company 00209539 OREM UT | E76: Gas
A77: Checking | B77: 2015-03-18 | C77: -15.39 | D77: NOODLES & CO 716 PROVO UT | E77: Eating Out
A78: Checking | B78: 2015-03-17 | C78: -7000 | D78: Online Withdrawal To Share 01 | E78: Internal Transfer
A79: Savings | B79: 2015-03-17 | C79: 7000 | D79: Online Deposit From Share 50 | E79: Internal Transfer
A80: VISA Credit | B80: 2015-03-17 | C80: 500 | D80: Online Loan Payment From Share 50 | E80: Internal Transfer
A81: Checking | B81: 2015-03-17 | C81: -500 | D81: Online Withdrawal To Loan 75 | E81: Internal Transfer
A82: VISA Credit | B82: 2015-03-17 | C82: -68.23 | D82: SPROUTS FARMERS MAR OREM UT | E82: Groceries
A83: VISA Credit | B83: 2015-03-17 | C83: -7.09 | D83: JAMBA JUICE #201 PROVO UT | E83: Fast Food
A84: Checking | B84: 2015-03-17 | C84: -14.73 | D84: ACH Withdrawal PAYPAL | E84: Uncategorized
A85: VISA Credit | B85: 2015-03-16 | C85: 45 | D85: Total Payment: $45.00 | E85: Gifts
A86: VISA Credit | B86: 2015-03-16 | C86: -36 | D86: GROUPON INC 877-788-7858 IL | E86: Health
A87: VISA Credit | B87: 2015-03-16 | C87: -45 | D87: GROUPON INC 877-788-7858 IL | E87: Gifts
A88: VISA Credit | B88: 2015-03-15 | C88: -5.47 | D88: BYU COUGAR CREATIONS PROVO UT | E88: Uncategorized
A89: Checking | B89: 2015-03-15 | C89: -2 | D89: PROVO UT RECREATION CE PROVO UT | E89: Uncategorized
A90: VISA Credit | B90: 2015-03-14 | C90: -282.66 | D90: UTAH VALLEY HOSPITAL PROVO UT | E90: Fast Food
A91: VISA Credit | B91: 2015-03-14 | C91: -18.81 | D91: SHOPKO 00500868 PROVO UT | E91: Uncategorized
A92: VISA Credit | B92: 2015-03-14 | C92: -11.72 | D92: SEAGULL BOOK - 0160 PROVO UT | E92: Uncategorized
A93: Checking | B93: 2015-03-13 | C93: -7.64 | D93: BYU STORE PROVO UT | E93: Education
A94: Checking | B94: 2015-03-13 | C94: -19.6 | D94: LDS BYU CENTER 707 PROVO UT | E94: Uncategorized
A95: Checking | B95: 2015-03-13 | C95: -3.63 | D95: ACH Withdrawal PAYPAL | E95: Uncategorized
A96: Checking | B96: 2015-03-12 | C96: -6.02 | D96: YOGURTLAND OREM OREM UT | E96: Fast Food
A97: Checking | B97: 2015-03-11 | C97: -62.91 | D97: SMITHS 350 N. FREEDOM PROVO UT | E97: Uncategorized
A98: Checking | B98: 2015-03-11 | C98: -894.12 | D98: ACH Withdrawal JPMORGAN CHASE | E98: Rental Mortgage
A99: Checking | B99: 2015-03-11 | C99: -69.77 | D99: ACH Withdrawal PAYPAL | E99: Uncategorized
A100: Checking | B100: 2015-03-11 | C100: -1097.5 | D100: KEVIN J REECE DDS PAYSON UT | E100: Health
A101: VISA Credit | B101: 2015-03-10 | C101: -68.04 | D101: MACEYS PROVO PROVO UT | E101: Groceries
A102: VISA Credit | B102: 2015-03-10 | C102: -6.37 | D102: DOLRTREE 2626 00026260 PROVO UT | E102: Uncategorized
A103: VISA Credit | B103: 2015-03-10 | C103: -10.32 | D103: JAMBA JUICE #201 PROVO UT | E103: Fast Food
A104: Checking | B104: 2015-03-10 | C104: -41.79 | D104: Bill Pay Withdrawal #X8AX2NF7HOBY | E104: Uncategorized
A105: Checking | B105: 2015-03-10 | C105: -20 | D105: PP*CRIO INC LINDON UT | E105: Uncategorized
A106: Checking | B106: 2015-03-10 | C106: -100 | D106: ACH Withdrawal DHS TTP PROG FEE | E106: Uncategorized
A107: Checking | B107: 2015-03-10 | C107: 895 | D107: ACH Deposit REAL PROPERTY MA | E107: Rental Income
A108: Checking | B108: 2015-03-09 | C108: -30.28 | D108: ACH Withdrawal PAYPAL | E108: Uncategorized
A109: Checking | B109: 2015-03-09 | C109: -30 | D109: ACH Withdrawal PAYPAL | E109: Uncategorized
A110: Checking | B110: 2015-03-09 | C110: -20 | D110: ACH Withdrawal STEVE SOULIER | E110: Utilities
A111: VISA Credit | B111: 2015-03-08 | C111: -24 | D111: THAI VILLAGE - AMERICAN AMERICAN FORK UT | E111: Eating Out
A112: VISA Credit | B112: 2015-03-08 | C112: -45 | D112: HEBER VALLEY HISTORIC 801-376-8028 UT | E112: Uncategorized
A113: VISA Credit | B113: 2015-03-08 | C113: -100 | D113: PP*SELFRELIANT SARATOGA SP UT | E113: Uncategorized
A114: VISA Credit | B114: 2015-03-07 | C114: -36.67 | D114: Company 00073049 PROVO UT | E114: Gas
A115: VISA Credit | B115: 2015-03-07 | C115: -18.5 | D115: ALPINE FOOD STORAGE HIGHLAND UT | E115: Uncategorized
A116: VISA Credit | B116: 2015-03-07 | C116: -14.2 | D116: ALPINE FOOD STORAGE HIGHLAND UT | E116: Uncategorized
A117: Checking | B117: 2015-03-06 | C117: -9 | D117: CITY OF PROVO PEAKS IC PROVO UT | E117: Uncategorized
A118: VISA Credit | B118: 2015-03-05 | C118: -51.23 | D118: HERFF JONES COLLEGE 217-351-9500 IL | E118: Uncategorized
A119: Checking | B119: 2015-03-04 | C119: -20 | D119: THE OLIVE GARD00012922 PROVO UT | E119: Eating Out
A120: Checking | B120: 2015-03-04 | C120: -15 | D120: Bill Pay Withdrawal #M4UOSWSKJY9D | E120: Uncategorized
A121: Checking | B121: 2015-03-04 | C121: -3.68 | D121: Bill Pay Withdrawal #BM86TYSCFXQQ | E121: Uncategorized
A122: Checking | B122: 2015-03-04 | C122: -85 | D122: ACH Withdrawal SPRING CREEK CRO | E122: Rental Costs
A123: Checking | B123: 2015-03-04 | C123: -351.13 | D123: RIVERWOODS ADV DIAG IMA PROVO UT | E123: Uncategorized
A124: VISA Credit | B124: 2015-03-03 | C124: -703.98 | D124: DELTA AIR 00623033581 DELTA.COM CA | E124: Travel
A125: Checking | B125: 2015-03-02 | C125: -825 | D125: ACH Withdrawal TIE ALPHA L.C. | E125: Rent
A126: Checking | B126: 2015-03-02 | C126: -65 | D126: ACH Withdrawal CASSIE LEEPER | E126: Uncategorized
A127: Checking | B127: 2015-03-01 | C127: -13.01 | D127: SPROUTS FARMERS MAR OREM UT | E127: Groceries
A128: Checking | B128: 2015-02-28 | C128: 0.3 | D128: Dividend Deposit 0.100% | E128: Income
A129: Checking | B129: 2015-02-28 | C129: -41.63 | D129: COSTCO WHSE #0484 648 EAST 800 SOUTH OREM | E129: Groceries
A130: Megan Savings | B130: 2015-02-28 | C130: 0.02 | D130: Dividend Deposit 0.100% | E130: Income
A131: Checking | B131: 2015-02-27 | C131: -9.7 | D131: PAPA JOHN'S #01566 801-356-7272 UT | E131: Eating Out
A132: Checking | B132: 2015-02-27 | C132: -6.27 | D132: Bill Pay Withdrawal #UJWVMO66TB2K | E132: Uncategorized
A133: Checking | B133: 2015-02-26 | C133: -35.05 | D133: MACEYS PROVO PROVO UT | E133: Groceries
A134: Checking | B134: 2015-02-26 | C134: -32.84 | D134: COSTCO WHSE #0484 648 EAST 800 SOUTH OREM | E134: Groceries
A135: Checking | B135: 2015-02-25 | C135: -9.06 | D135: BYU CREAMERY ON NINTH PROVO UT | E135: Groceries
A136: Checking | B136: 2015-02-25 | C136: -170 | D136: Check Withdrawal: #000452 | E136: Uncategorized
A137: Checking | B137: 2015-02-24 | C137: 10027 | D137: ACH Deposit IRS TREAS 310 | E137: Taxes
A138: Checking | B138: 2015-02-23 | C138: 13.84 | D138: SPROUTS FARMERS MARSSS OREM UT | E138: Groceries
A139: Checking | B139: 2015-02-22 | C139: -796.03 | D139: CENTRAL UTAH SURGICAL C 801-374-0354 UT | E139: Health
A140: Checking | B140: 2015-02-22 | C140: -2.66 | D140: MANY LANDS PROVO UT | E140: Uncategorized
A141: VISA Credit | B141: 2015-02-21 | C141: -38.99 | D141: DENTALPLANS.COM 800-494-9294 FL | E141: Health
A142: Checking | B142: 2015-02-21 | C142: -48.41 | D142: SPROUTS FARMERS MKT#602 OREM UT | E142: Groceries
A143: Checking | B143: 2015-02-21 | C143: -24 | D143: BRIGHAM YOUNG UNIV WEB 801-422-4701 UT | E143: Education
A144: Checking | B144: 2015-02-20 | C144: -71.5 | D144: UTAH-DMV OFFICES SALT LAKE CIT UT | E144: Car
A145: VISA Credit | B145: 2015-02-19 | C145: -7.49 | D145: JAMBA JUICE #201 PROVO UT | E145: Fast Food
A146: Checking | B146: 2015-02-19 | C146: -91.61 | D146: JIFFY LUBE #968 290 W 1230 N PROVO UT | E146: Car
A147: Checking | B147: 2015-02-19 | C147: -25 | D147: UT CO-MARRIAGE LICENSE PROVO UT | E147: Uncategorized
A148: VISA Credit | B148: 2015-02-18 | C148: 500 | D148: Online Loan Payment From Share 50 | E148: Internal Transfer
A149: Checking | B149: 2015-02-18 | C149: -500 | D149: Online Withdrawal To Loan 75 | E149: Internal Transfer
A150: Checking | B150: 2015-02-18 | C150: 30 | D150: AMAZON.COM REFUNDAMAZON.COM SEATTLE WA | E150: Uncategorized
A151: Checking | B151: 2015-02-18 | C151: -2.81 | D151: USPS 4971760601 95 W 100 S PROVO UT | E151: Uncategorized
A152: Checking | B152: 2015-02-18 | C152: 1590 | D152: ACH Deposit FRANCHISE TAX BD | E152: Taxes
A153: VISA Credit | B153: 2015-02-17 | C153: -8.74 | D153: SPROUTS FARMERS MAR OREM UT | E153: Groceries
A154: Checking | B154: 2015-02-17 | C154: 920 | D154: ACH Deposit REAL PROPERTY MA | E154: Rental Income
A155: Checking | B155: 2015-02-16 | C155: -121.13 | D155: COSTCO WHSE #0484 648 EAST 800 SOUTH OREM | E155: Groceries
A156: Checking | B156: 2015-02-16 | C156: -5.33 | D156: COSTCO WHSE #0484 648 EAST 800 SOUTH OREM | E156: Groceries
A157: VISA Credit | B157: 2015-02-15 | C157: -23.53 | D157: BYU CREAMERY ON NINTH PROVO UT | E157: Groceries
A158: VISA Credit | B158: 2015-02-13 | C158: -1.39 | D158: BYU COUGAR CREATIONS PROVO UT | E158: Uncategorized
A159: VISA Credit | B159: 2015-02-13 | C159: -6.1 | D159: BYU COUGAR CREATIONS PROVO UT | E159: Uncategorized
A160: VISA Credit | B160: 2015-02-12 | C160: -3.59 | D160: LEHI ROLLER MILLS LEHI UT | E160: Uncategorized
A161: Checking | B161: 2015-02-12 | C161: -40 | D161: Check Withdrawal: #000495 | E161: Uncategorized
A162: Checking | B162: 2015-02-12 | C162: -43.24 | D162: MACEYS PROVO PROVO UT | E162: Groceries
A163: Checking | B163: 2015-02-12 | C163: -30.7 | D163: Company 00073049 PROVO UT | E163: Gas
A164: VISA Credit | B164: 2015-02-11 | C164: -24.51 | D164: NATURAL GROCERS-LG LOGAN UT | E164: Groceries
A165: VISA Credit | B165: 2015-02-11 | C165: -65 | D165: SUNRISE CYCLERY LOGAN UT | E165: Uncategorized
A166: Checking | B166: 2015-02-11 | C166: -24.94 | D166: Bill Pay Withdrawal #DULXATORZ8G6 | E166: Uncategorized
A167: Checking | B167: 2015-02-11 | C167: -894.12 | D167: ACH Withdrawal JPMORGAN CHASE | E167: Rental Mortgage
A168: Checking | B168: 2015-02-11 | C168: -370 | D168: ACH Withdrawal STEVE SOULIER | E168: Utilities
A169: VISA Credit | B169: 2015-02-10 | C169: -12.46 | D169: NATURAL GROCERS-LG LOGAN UT | E169: Groceries
A170: Checking | B170: 2015-02-10 | C170: -2.32 | D170: BYU CREAMERY ON NINTH PROVO UT | E170: Groceries
A171: VISA Credit | B171: 2015-02-09 | C171: -45 | D171: SQ *STEPHANIE A. HOGLUN Hyde Park UT | E171: Uncategorized
A172: Checking | B172: 2015-02-09 | C172: -20 | D172: ACH Withdrawal STEVE SOULIER | E172: Utilities
A173: Checking | B173: 2015-02-06 | C173: -305.16 | D173: ACH Withdrawal THE LOGO SHOP | E173: Uncategorized
A174: Checking | B174: 2015-02-05 | C174: -90.32 | D174: Check Withdrawal: #000492 | E174: Uncategorized
A175: VISA Credit | B175: 2015-02-04 | C175: -42.62 | D175: SPROUTS FARMERS MAR OREM UT | E175: Groceries
A176: Checking | B176: 2015-02-04 | C176: -17.28 | D176: HEBER VALLEY MILK MIDWAY UT | E176: Groceries
A177: Checking | B177: 2015-02-04 | C177: -85 | D177: ACH Withdrawal SPRING CREEK CRO | E177: Rental Costs
A178: Checking | B178: 2015-02-03 | C178: -15 | D178: ART OF BEAUTY 216-4366363 OH | E178: Uncategorized
A179: Checking | B179: 2015-02-03 | C179: -25.31 | D179: COSTCO GAS #0484 648 EAST 800 S. OREM UT | E179: Groceries
A180: Checking | B180: 2015-02-03 | C180: -151.58 | D180: COSTCO WHSE #0484 648 EAST 800 SOUTH OREM | E180: Groceries
A181: VISA Credit | B181: 2015-01-31 | C181: -18.76 | D181: BEEHIVE HEALTH ESS SPANISH FORK UT | E181: Health
A182: VISA Credit | B182: 2015-01-31 | C182: -29.7 | D182: MACEY'S SPANISH FORK UT | E182: Groceries
A183: VISA Credit | B183: 2015-01-31 | C183: -6.18 | D183: MY SISTER'S CLOSET LLC SPANISH FORK UT | E183: Clothes
A184: VISA Credit | B184: 2015-01-31 | C184: -95 | D184: KEVIN J REECE DDS 801-465-4474 UT | E184: Health
A185: Checking | B185: 2015-01-31 | C185: 0.43 | D185: Dividend Deposit 0.100% | E185: Income
A186: Checking | B186: 2015-01-31 | C186: -18 | D186: DENNY'S #7482 PROVO UT | E186: Eating Out
A187: Megan Savings | B187: 2015-01-31 | C187: 0.02 | D187: Dividend Deposit 0.100% | E187: Income
A188: Checking | B188: 2015-01-30 | C188: -4.09 | D188: BYU CREAMERY FOUNTAIN PROVO UT | E188: Groceries
A189: Checking | B189: 2015-01-29 | C189: 55 | D189: ACH Deposit PAYPAL | E189: Uncategorized
A190: VISA Credit | B190: 2015-01-28 | C190: -19.52 | D190: BYU STORE PROVO UT | E190: Education
A191: Checking | B191: 2015-01-28 | C191: -825 | D191: ACH Withdrawal TIE ALPHA L.C. | E191: Rent
A192: Checking | B192: 2015-01-27 | C192: -20 | D192: IHOP 1730 00017301 OREM UT | E192: Eating Out
A193: Checking | B193: 2015-01-27 | C193: -1694 | D193: ACH Withdrawal BYU | E193: Uncategorized
A194: VISA Credit | B194: 2015-01-23 | C194: 1000 | D194: Online Loan Payment From Share 50 | E194: Internal Transfer
A195: Checking | B195: 2015-01-23 | C195: -1000 | D195: Online Withdrawal To Loan 75 | E195: Internal Transfer
A196: VISA Credit | B196: 2015-01-23 | C196: -8.39 | D196: RICE GARDEN 052 PROVO UT | E196: Uncategorized
A197: Checking | B197: 2015-01-23 | C197: -52.7 | D197: ACH Withdrawal PAYPAL | E197: Uncategorized
A198: Checking | B198: 2015-01-22 | C198: -111.34 | D198: SMITHS 350 N. FREEDOM PROVO UT | E198: Uncategorized
A199: VISA Credit | B199: 2015-01-20 | C199: -6.42 | D199: LITTLE CAESARS 0373 000 SAINT GEORGE UT | E199: Fast Food
A200: VISA Credit | B200: 2015-01-20 | C200: -4 | D200: BRIGHAM YOUNG UNIV WEB 801-422-4701 UT | E200: Education
... 36 more rows

Sheet RentalData
A1: Account | B1: Date | C1: Amount | D1: Description | E1: Category | G1: Year | H1: Yearly Costs | I1: Yearly Income
A2: Checking | B2: 2015-03-11 | C2: -894.12 | D2: ACH Withdrawal JPMORGAN CHASE | E2: Rental Mortgage | G2: 2016
A3: Checking | B3: 2015-03-10 | C3: 895 | D3: ACH Deposit REAL PROPERTY MA | E3: Rental Income | G3: 2015 | H3: =(SUMIFS(C:C,B:B,">1/1/2015",E:E,"=* Mortgage")+SUMIFS(C:C,B:B,">1/1/2015",E:E,"=* Costs"))*-1 -> 2937.36 | I3: =SUMIFS(C:C,B:B,">1/1/2015",E:E,"*Income") -> 2710
A4: Checking | B4: 2015-03-04 | C4: -85 | D4: ACH Withdrawal SPRING CREEK CRO | E4: Rental Costs | G4: 2014 | H4: =(SUMIFS(C:C,B:B,">1/1/2014 ",E:E,"=*Mortgage")+SUMIFS(C:C,B:B,">1/1/2014 ",E:E,"=*Costs")-(SUMIFS(C:C,B:B,">1/1/2015 ",E:E,"=* Mortgage")+SUMIFS(C:C,B:B,">1/1/2015 ",E:E,"=* Costs")))*-1 -> 11725.39 | I4: =SUMIFS(C:C,B:B,">1/1/2014",E:E,"*Income")-SUMIFS(C:C,B:B,">1/1/2015",E:E,"*Income") -> 9837.4
A5: Checking | B5: 2015-02-17 | C5: 920 | D5: ACH Deposit REAL PROPERTY MA | E5: Rental Income | G5: 2013 | H5: =(SUMIFS(C:C,B:B,">1/1/2013 ",E:E,"=*Mortgage")+SUMIFS(C:C,B:B,">1/1/2013 ",E:E,"=*Costs")-(SUMIFS(C:C,B:B,">1/1/2014 ",E:E,"=* Mortgage")+SUMIFS(C:C,B:B,">1/1/2014 ",E:E,"=* Costs")))*-1 -> 4818.6 | I5: =SUMIFS(C:C,B:B,">1/1/2013",E:E,"*Income")-SUMIFS(C:C,B:B,">1/1/2014",E:E,"*Income") -> 325.07
A6: Checking | B6: 2015-02-11 | C6: -894.12 | D6: ACH Withdrawal JPMORGAN CHASE | E6: Rental Mortgage
A7: Checking | B7: 2015-02-04 | C7: -85 | D7: ACH Withdrawal SPRING CREEK CRO | E7: Rental Costs
A8: Checking | B8: 2015-01-13 | C8: 895 | D8: ACH Deposit REAL PROPERTY MA | E8: Rental Income
A9: Checking | B9: 2015-01-12 | C9: -894.12 | D9: ACH Withdrawal JPMORGAN CHASE | E9: Rental Mortgage
A10: Checking | B10: 2015-01-05 | C10: -85 | D10: ACH Withdrawal SPRING CREEK CRO | E10: Rental Costs
A11: Checking | B11: 2014-12-11 | C11: -894.12 | D11: ACH Withdrawal JPMORGAN CHASE | E11: Rental Mortgage
A12: Checking | B12: 2014-12-11 | C12: 856 | D12: ACH Deposit REAL PROPERTY MA | E12: Rental Income
A13: Checking | B13: 2014-12-03 | C13: -85 | D13: ACH Withdrawal SPRING CREEK CRO | E13: Rental Costs
A14: Checking | B14: 2014-11-12 | C14: -894.12 | D14: ACH Withdrawal JPMORGAN CHASE | E14: Rental Mortgage
A15: Checking | B15: 2014-11-12 | C15: 895 | D15: ACH Deposit REAL PROPERTY MA | E15: Rental Income
A16: Checking | B16: 2014-11-05 | C16: -85 | D16: ACH Withdrawal SPRING CREEK CRO | E16: Rental Costs
A17: Checking | B17: 2014-10-14 | C17: -887.71 | D17: ACH Withdrawal JPMORGAN CHASE | E17: Rental Mortgage
A18: Checking | B18: 2014-10-14 | C18: 739.24 | D18: ACH Deposit REAL PROPERTY MA | E18: Rental Income
A19: Checking | B19: 2014-10-03 | C19: -85 | D19: ACH Withdrawal SPRING CREEK CRO | E19: Rental Costs
A20: Checking | B20: 2014-09-15 | C20: 613.13 | D20: ACH Deposit PAYLEASE.COM | E20: Rental Income
A21: Checking | B21: 2014-09-11 | C21: -887.71 | D21: ACH Withdrawal JPMORGAN CHASE | E21: Rental Mortgage
A22: Checking | B22: 2014-09-04 | C22: -85 | D22: ACH Withdrawal SPRING CREEK CRO | E22: Rental Costs
A23: Checking | B23: 2014-08-14 | C23: 895 | D23: ACH Deposit PAYLEASE.COM | E23: Rental Income
A24: Checking | B24: 2014-08-11 | C24: -887.71 | D24: ACH Withdrawal JPMORGAN CHASE | E24: Rental Mortgage
A25: Checking | B25: 2014-08-04 | C25: -85 | D25: ACH Withdrawal SPRING CREEK CRO | E25: Rental Costs
A26: Checking | B26: 2014-07-15 | C26: 850 | D26: ACH Deposit PAYLEASE.COM | E26: Rental Income
A27: Checking | B27: 2014-07-11 | C27: -887.71 | D27: ACH Withdrawal JPMORGAN CHASE | E27: Rental Mortgage
A28: Checking | B28: 2014-07-03 | C28: -85 | D28: ACH Withdrawal SPRING CREEK CRO | E28: Rental Costs
A29: Checking | B29: 2014-06-12 | C29: 850 | D29: ACH Deposit PAYLEASE.COM | E29: Rental Income
A30: Checking | B30: 2014-06-11 | C30: -887.71 | D30: ACH Withdrawal JPMORGAN CHASE | E30: Rental Mortgage
A31: Checking | B31: 2014-06-04 | C31: -85 | D31: ACH Withdrawal SPRING CREEK CRO | E31: Rental Costs
A32: Checking | B32: 2014-05-14 | C32: 760 | D32: ACH Deposit PAYLEASE.COM | E32: Rental Income
A33: Checking | B33: 2014-05-12 | C33: -895.72 | D33: ACH Withdrawal JPMORGAN CHASE | E33: Rental Mortgage
A34: Checking | B34: 2014-05-05 | C34: -85 | D34: ACH Withdrawal SPRING CREEK CRO | E34: Rental Costs
A35: Checking | B35: 2014-04-15 | C35: 748.83 | D35: ACH Deposit PAYLEASE.COM | E35: Rental Income
A36: Checking | B36: 2014-04-11 | C36: -895.72 | D36: ACH Withdrawal JPMORGAN CHASE | E36: Rental Mortgage
A37: Checking | B37: 2014-04-03 | C37: -85 | D37: ACH Withdrawal SPRING CREEK CRO | E37: Rental Costs
A38: Checking | B38: 2014-03-17 | C38: 860 | D38: ACH Deposit PAYLEASE.COM | E38: Rental Income
A39: Checking | B39: 2014-03-11 | C39: -895.72 | D39: ACH Withdrawal JPMORGAN CHASE | E39: Rental Mortgage
A40: Checking | B40: 2014-03-05 | C40: -85 | D40: ACH Withdrawal SPRING CREEK CRO | E40: Rental Costs
A41: Checking | B41: 2014-02-13 | C41: 850 | D41: ACH Deposit PAYLEASE.COM | E41: Rental Income
A42: Checking | B42: 2014-02-11 | C42: -895.72 | D42: ACH Withdrawal JPMORGAN CHASE | E42: Rental Mortgage
A43: Checking | B43: 2014-02-05 | C43: -85 | D43: ACH Withdrawal SPRING CREEK CRO | E43: Rental Costs
A44: Checking | B44: 2014-01-15 | C44: 920.2 | D44: ACH Deposit PAYLEASE.COM | E44: Rental Income
A45: Checking | B45: 2014-01-08 | C45: -895.72 | D45: ACH Withdrawal JPMORGAN CHASE | E45: Rental Mortgage
A46: Checking | B46: 2014-01-06 | C46: -85 | D46: ACH Withdrawal SPRING CREEK CRO | E46: Rental Costs
A47: Checking | B47: 2013-12-09 | C47: -895.72 | D47: ACH Withdrawal JPMORGAN CHASE | E47: Rental Mortgage
A48: Checking | B48: 2013-12-04 | C48: -85 | D48: ACH Withdrawal SPRING CREEK CRO | E48: Rental Costs
A49: Checking | B49: 2013-11-15 | C49: 325.07 | D49: ACH Deposit PAYLEASE.COM | E49: Rental Income
A50: Checking | B50: 2013-11-08 | C50: -895.72 | D50: ACH Withdrawal JPMORGAN CHASE | E50: Rental Mortgage
A51: Checking | B51: 2013-11-04 | C51: -85 | D51: ACH Withdrawal SPRING CREEK CRO | E51: Rental Costs
A52: Checking | B52: 2013-10-08 | C52: -895.72 | D52: ACH Withdrawal JPMORGAN CHASE | E52: Rental Mortgage
A53: Checking | B53: 2013-10-03 | C53: -85 | D53: ACH Withdrawal SPRING CREEK CRO | E53: Rental Costs
A54: Checking | B54: 2013-09-09 | C54: -895.72 | D54: ACH Withdrawal JPMORGAN CHASE | E54: Rental Mortgage
A55: Checking | B55: 2013-09-05 | C55: -85 | D55: ACH Withdrawal SPRING CREEK CRO | E55: Rental Costs
A56: Checking | B56: 2013-08-08 | C56: -895.72 | D56: ACH Withdrawal JPMORGAN CHASE | E56: Rental Mortgage

Sheet Categorization Rules
A1: Categories | B1: Rules | C1: This structure was inspired by http://vbaprojects.blogspot.com/2014/04/vba-final-project-automated-personal.html
A2: Car | B2: DMV,JIFFY LUBE,AAA,AUTOZONE
A3: Clothes | B3: DRESSING YOUR TRUTH,KID TO KID,SISTER'S CLOSET
A4: Donations | B4: INDIEGOGO,PUBLIC RADIO
A5: Eating Out | B5: BAR-B-Q,BBQ,NOODLES,THAI,OLIVE GAR,PAPA JOHN,DENNY,IHOP
A6: Education | B6: BYU STORE,BRIGHAM YOUNG
A7: Fast Food | B7: JAMBA,TACO,YOGURT,MCDONALD,BURGER,WENDY,ARCTIC,LITTLE CAESARS,EINSTEIN BR,PITA,SUBS,CARL'S
A8: Gas | B8: CHEVRON,MAVERIK
A9: Gifts | B9: FTD
A10: Groceries | B10: SPROUTS,SWEET TOMATOES,CREAMERY,RANCHO,HARMONS,REAL FOOD,VITAMIN,MACEY,COSTCO,GROCERS,MILK,WINCO
A11: Health | B11: HOSPITAL,DDS,SURGICAL,DENTAL,HEALTH
A12: Income | B12: COMPANY,DIVIDEND
A13: Insurance | B13: ALLSTATE,ALL STATE
A14: Internal Transfer | B14: ONLINE DEPOSIT,ONLINE WITHDRAWAL,LOAN ADVANCE, LOAN PAYMENT
A15: Rent | B15: TIE ALPHA
A16: Rental Costs | B16: SPRING CREEK
A17: Rental Income | B17: REAL PROPERTY,PAYLEASE
A18: Rental Mortgage | B18: JPMORGAN
A19: Taxes | B19: IRS, TAX
A20: Tithing
A21: Travel | B21: HOTEL,HILTON,MARRIOTT,DELTA,UNITED,BUDGET
A22: Tupperware | B22: TUPPERWARE
A23: Uncategorized | B23: Check,PAYPAL,AMAZON,GROUPON
A24: Utilities | B24: ELECTRIC,
A25: Megan's Black Market

Sheet Loan Sensitivity
A1: Home/Car Loan | B1: Gray are Inputs to manually change | D1: This entire worksheet taken from http://files.gove.net/shares/files/14f/jensen48/Jensen_Final_Project.xlsm
E2: Price | I2: Down Payment | M2: Term | Q2: Interest Rate
A3: Inputs
A4: Price | B4: 300000 | D4: Price | E4: Monthly Payment | F4: Total Interest | H4: Down Payment | I4: Monthly Payment | J4: Total Interest | L4: Term | M4: Monthly Payment | N4: Total Interest | P4: Interest Rate | Q4: Monthly Payment | R4: Total Interest
A5: Down Payment | B5: 10000 | D5: 150000 | E5: 751.55 | F5: 130558.1 | H5: 5000 | I5: 1583.62 | J5: 275104.56 | L5: 180 | M5: 2293.3 | N5: 122794.27 | P5: 0.025 | Q5: 1145.85 | R5: 122506.22
A6: Annual Interest Rate | B6: 0.05 | D6: 180000 | E6: 912.6 | F6: 158534.83 | H6: 6000 | I6: 1578.26 | J6: 274172.01 | L6: 360 | M6: 1556.78 | N6: 270441.77 | P6: 0.03 | Q6: 1222.65 | R6: 150154.61
A7: Term (Months to Pay) | B7: 360 | D7: 210000 | E7: 1073.64 | F7: 186511.57 | H7: 7000 | I7: 1572.89 | J7: 273239.45 | P7: 0.035 | Q7: 1302.23 | R7: 178802.65
A8: *If Car Loan enter 12, 24, 36, 48, or 60 | D8: 240000 | E8: 1234.69 | F8: 214488.3 | H8: 8000 | I8: 1567.52 | J8: 272306.89 | P8: 0.04 | Q8: 1384.5 | R8: 208421.57
A9: *If Home Loan enter 180 or 360 | D9: 270000 | E9: 1395.74 | F9: 242465.04 | H9: 9000 | I9: 1562.15 | J9: 271374.33 | P9: 0.045 | Q9: 1469.39 | R9: 238979.46
D10: 300000 | E10: 1556.78 | F10: 270441.77 | H10: 10000 | I10: 1556.78 | J10: 270441.77 | P10: 0.05 | Q10: 1556.78 | R10: 270441.77
A11: Outputs | D11: 330000 | E11: 1717.83 | F11: 298418.51 | H11: 11000 | I11: 1551.41 | J11: 269509.22 | P11: 0.055 | Q11: 1646.59 | R11: 302771.72
A12: Amount Financed | B12: =Price-DownPay -> 290000 | D12: 360000 | E12: 1878.88 | F12: 326395.25 | H12: 12000 | I12: 1546.05 | J12: 268576.66 | P12: 0.06 | Q12: 1738.7 | R12: 335930.75
A13: Monthly Payment | B13: =PMT(IntRate/12,Term,-Loan) -> 1556.782707 | D13: 390000 | E13: 2039.92 | F13: 354371.98 | H13: 13000 | I13: 1540.68 | J13: 267644.1 | P13: 0.065 | Q13: 1833 | R13: 369879.02
A14: Total Interest Paid | B14: =Payment*Term-Loan -> 270441.7744 | D14: 420000 | E14: 2200.97 | F14: 382348.72 | H14: 14000 | I14: 1535.31 | J14: 266711.54 | P14: 0.07 | Q14: 1929.38 | R14: 404575.81
D15: 450000 | E15: 2362.02 | F15: 410325.45 | H15: 15000 | I15: 1529.94 | J15: 265778.99 | P15: 0.075 | Q15: 2027.72 | R15: 439979.95
D16: 480000 | E16: 2523.06 | F16: 438302.19 | H16: 16000 | I16: 1524.57 | J16: 264846.43 | P16: 0.08 | Q16: 2127.92 | R16: 476050.22
D17: 510000 | E17: 2684.11 | F17: 466278.92 | H17: 17000 | I17: 1519.21 | J17: 263913.87 | P17: 0.085 | Q17: 2229.85 | R17: 512745.68
D18: 540000 | E18: 2845.15 | F18: 494255.66 | H18: 18000 | I18: 1513.84 | J18: 262981.31 | P18: 0.09 | Q18: 2333.41 | R18: 550026.01
D19: 570000 | E19: 3006.2 | F19: 522232.39 | H19: 19000 | I19: 1508.47 | J19: 262048.75 | P19: 0.095 | Q19: 2438.48 | R19: 587851.79
D20: 600000 | E20: 3167.25 | F20: 550209.13 | H20: 20000 | I20: 1503.1 | J20: 261116.2 | P20: 0.1 | Q20: 2544.96 | R20: 626184.72

Sheet Amortization Schedule
A1: Inputs | B1: Gray are Inputs to manually change | D1: Month | E1: Payment | F1: Interest | G1: Principal | H1: Extra Payment | I1: Loan | K1: This entire worksheet taken from http://files.gove.net/shares/files/14f/jensen48/Jensen_Final_Project.xlsm
A2: Price | B2: 30000 | I2: =B4 -> 25000
A3: Down Payment | B3: 5000 | D3: 1 | E3: =$B$12 -> 1080.068053 | F3: =$B$5/12*I2 -> 72.91666667 | G3: =E3-F3 -> 1007.151387 | I3: =I2-G3-H3 -> 23992.84861
A4: Total Financed | B4: =B2-B3 -> 25000 | D4: 2 | E4: =$B$12 -> 1080.068053 | F4: =$B$5/12*I3 -> 69.97914179 | G4: =E4-F4 -> 1010.088912 | H4: 75 | I4: =I3-G4-H4 -> 22907.7597
A5: Annual Interest Rate | B5: 0.035 | D5: 3 | E5: 1080.068053 | F5: 66.81429913 | G5: 1013.253754 | H5: 75 | I5: 21819.50595
A6: Term (Months to Pay) | B6: 24 | D6: 4 | E6: 1080.068053 | F6: 63.64022568 | G6: 1016.427828 | H6: 75 | I6: 20728.07812
A7: *If Car Loan Enter 12, 24, 36, 48, or 60 | D7: 5 | E7: 1080.068053 | F7: 60.45689452 | G7: 1019.611159 | H7: 75 | I7: 19633.46696
A8: *If Home Loan Enter 180 or 360 | D8: 6 | E8: 1080.068053 | F8: 57.26427864 | G8: 1022.803775 | H8: 75 | I8: 18535.66319
D9: 7 | E9: 1080.068053 | F9: 54.06235096 | G9: 1026.005702 | H9: 75 | I9: 17434.65748
A10: Outputs | D10: 8 | E10: 1080.068053 | F10: 50.85108433 | G10: 1029.216969 | H10: 75 | I10: 16330.44051
A11: Amount Financed | B11: =B4 -> 25000 | D11: 9 | E11: 1080.068053 | F11: 47.6304515 | G11: 1032.437602 | H11: 75 | I11: 15223.00291
A12: Monthly Payment | B12: =PMT(B5/12,B6,-B4) -> 1080.068053 | D12: 10 | E12: 1080.068053 | F12: 44.40042516 | G12: 1035.667628 | H12: 75 | I12: 14112.33528
A13: Total Interest Paid | B13: =B12*B6-B11 -> 921.6332814 | D13: 11 | E13: 1080.068053 | F13: 41.16097791 | G13: 1038.907075 | H13: 75 | I13: 12998.42821
A14: Total Cost of Loan | B14: =B13+B11 -> 25921.63328 | D14: 12 | E14: 1080.068053 | F14: 37.91208228 | G14: 1042.155971 | I14: 11956.27224
D15: 13 | E15: 1080.068053 | F15: 34.87246069 | G15: 1045.195593 | I15: 10911.07665
A16: Extra Payment | D16: 14 | E16: 1080.068053 | F16: 31.82397355 | G16: 1048.24408 | I16: 9862.832565
A17: Extra Payment Amount | B17: 75 | D17: 15 | E17: 1080.068053 | F17: 28.76659498 | G17: 1051.301458 | I17: 8811.531107
A18: # of Months Remaining on Loan | B18: 23 | D18: 16 | E18: 1080.068053 | F18: 25.70029906 | G18: 1054.367754 | I18: 7757.163353
A19: # of Months Extra Payment is Made | B19: 10 | D19: 17 | E19: 1080.068053 | F19: 22.62505978 | G19: 1057.442994 | I19: 6699.720359
D20: 18 | E20: 1080.068053 | F20: 19.54085105 | G20: 1060.527202 | I20: 5639.193157
A21: New Total Interest Paid | B21: =SUM(F3:F26) -> 882.3892456 | D21: 19 | E21: 1080.068053 | F21: 16.44764671 | G21: 1063.620407 | I21: 4575.57275
D22: 20 | E22: 1080.068053 | F22: 13.34542052 | G22: 1066.722633 | I22: 3508.850117
A23: Total Interest Saved | B23: =B13-B21 -> 39.24403585 | D23: 21 | E23: 1080.068053 | F23: 10.23414617 | G23: 1069.833907 | I23: 2439.01621
A24: # of Months Reduced | B24: 0 | D24: 22 | E24: 1080.068053 | F24: 7.113797279 | G24: 1072.954256 | I24: 1366.061954
D25: 23 | E25: 1080.068053 | F25: 3.984347365 | G25: 1076.083706 | I25: 289.9782477
D26: 24 | E26: 290.8240175 | F26: 0.845769889 | G26: 289.9782477 | I26: 0
A40: Total Payment Savings | B40: =B14-B24 -> 25921.63328
A41: Total Ineterest Savings | B41: =B16-B25 -> 0
